bitfinex/quotes_ETHUSD_20260119
["timestamp","ask_amount","ask_price","bid_price","bid_amount"]
[1768807485221,0.00080016,3202.3,3202.2,1.25724224]
[1768807488119,0.00080016,3202.3,3202.1,0.43803698]
[1768807488419,0.00080016,3202.3,3202.1,1.69527922]
[1768807489523,0.00080016,3202.3,3202.1,4.8182283]
[1768807490634,0.00080016,3202.3,3202.2,3.12285303]
[1768807490823,0.00080016,3202.3,3202.2,5.1773362]
[1768807491016,0.00080008,3202.6,3202.3,1.25724224]
[1768807491332,0.00080008,3202.6,3202.2,0.79724093]
[1768807491507,1.26986345,3202.6,3202.2,0.79724093]
[1768807491706,1.26986345,3202.6,3202.1,4.81819558]
[1768807495428,0.001,3202.3,3202.1,4.81819558]
[1768807497338,0.001,3202.3,3202.1,1.69527922]
[1768807498842,0.001,3202.3,3202.1,4.8182171]
[1768807502341,0.001,3202.3,3202.1,0.43803698]
[1768807502514,0.001,3202.3,3202.1,3.5609716]
[1768807502719,0.001,3202.3,3202.1,0.43803698]
[1768807504439,0.001,3202.3,3202.1,3.56097068]
[1768807504840,0.00080008,3202.6,3202.3,1.34447414]
[1768807506054,0.00080008,3202.6,3202.4,4.46713214]
[1768807507331,1.24173484,3203.0,3202.5,0.00080008]
[1768807509447,1.24173484,3203.0,3202.5,1.34527422]
[1768807510154,1.24173484,3203.0,3202.5,0.00080008]
[1768807510579,3.12209037,3203.0,3202.5,0.00080008]
[1768807510761,1.2484098,3202.9,3202.5,0.00080008]
[1768807516791,3.63771519,3203.2,3202.5,1.34527422]
[1768807517156,0.5158,3203.2,3202.5,1.34527422]
[1768807517566,1.2484098,3203.1,3202.5,1.34527422]
[1768807519191,1.2484098,3203.1,3202.7,0.002]
[1768807519392,0.48860907,3203.0,3202.7,0.002]
[1768807519772,1.2484098,3203.1,3202.7,0.002]
[1768807521091,0.0008,3203.2,3202.7,1.34647414]
[1768807522170,1.2492098,3203.2,3202.7,1.34647414]
[1768807522687,1.2492098,3203.2,3202.7,0.002]
[1768807529503,4.37109747,3203.2,3202.7,0.002]
[1768807529848,1.17669564,3203.1,3202.7,0.002]
[1768807531226,1.17669564,3203.1,3203.0,0.002]
[1768807538698,0.0008,3203.2,3203.0,0.002]
[1768807538887,1.23487111,3203.2,3203.0,0.002]
[1768807540047,1.23407111,3203.1,3203.0,0.002]
[1768807543171,0.0008,3203.2,3203.0,0.002]
[1768807543958,1.23487111,3203.2,3203.0,0.002]
[1768807545257,2.03420912,3203.2,3203.0,0.002]
[1768807545458,5.15610733,3203.2,3203.0,0.002]
[1768807545952,1.23407111,3203.1,3202.7,0.002]
[1768807547257,0.5158,3203.2,3202.7,1.14099745]
[1768807547564,0.5158,3203.2,3202.8,1.13899745]
[1768807550038,3.63767894,3203.2,3202.8,1.13899745]
[1768807550641,4.87170471,3203.2,3202.8,1.13899745]
[1768807550878,1.23482577,3203.2,3202.7,1.14099745]
[1768807551372,4.35675391,3203.2,3202.7,1.14099745]
[1768807552567,1.22408103,3203.1,3202.7,1.14099745]
[1768807552772,1.09239325,3203.2,3202.7,1.14099745]
[1768807553441,4.21428292,3203.2,3202.7,1.14099745]
[1768807555665,4.21428292,3203.2,3203.0,0.002]
[1768807555877,4.99937969,3203.2,3203.0,0.002]
[1768807556265,1.87749002,3203.2,3203.0,0.002]
[1768807557572,0.78589677,3203.2,3203.0,0.002]
[1768807557946,0.0008,3203.2,3203.0,0.002]
[1768807559958,3.12270765,3203.2,3203.0,0.002]
[1768807560571,0.0008,3203.2,3203.0,0.002]
[1768807567798,0.43358555,3203.3,3203.0,1.17478034]
[1768807576006,3.55537154,3203.3,3203.0,1.17478034]
[1768807576398,3.55537154,3203.3,3203.0,0.002]
[1768807577197,0.43358555,3203.3,3203.0,0.002]
[1768807579000,4.64698214,3203.3,3203.0,0.002]
[1768807579302,1.5251788,3203.3,3203.0,0.002]
[1768807580996,4.64698014,3203.3,3203.0,0.002]
[1768807583589,1.5251788,3203.3,3203.0,0.002]
[1768807584006,4.64697023,3203.3,3203.0,0.002]
[1768807586429,3.55537698,3203.3,3203.0,0.002]
[1768807586796,3.55537698,3203.3,3203.0,1.12566447]
[1768807586998,0.43358555,3203.3,3203.0,1.12566447]
[1768807587630,3.55539548,3203.3,3203.0,0.002]
[1768807588820,0.43358555,3203.3,3203.0,0.002]
[1768807589322,0.43358555,3203.3,3203.0,1.12566447]
[1768807590110,3.12171442,3203.4,3203.0,1.12566447]
[1768807590309,0.0008,3203.6,3203.0,1.12566447]
[1768807590515,0.0008,3203.6,3203.2,1.12366447]
[1768807590700,0.0008,3203.6,3203.4,1.12366447]
[1768807591838,3.12109862,3204.0,3203.4,1.12366447]
[1768807593333,1.05751271,3203.9,3203.3,0.002]
[1768807593633,4.17893691,3203.7,3203.3,0.002]
[1768807594132,4.17893691,3203.7,3203.3,1.12566447]
[1768807594526,3.12132982,3203.8,3203.3,1.12566447]
[1768807602568,6.24280242,3204.1,3203.3,0.002]
[1768807602860,1.10539908,3204.0,3203.4,1.0797782]
[1768807603030,1.84021923,3203.9,3203.4,1.0797782]
[1768807604667,4.22669254,3203.8,3203.4,1.0797782]
[1768807605464,3.12129346,3203.8,3203.4,1.0797782]
[1768807606272,6.24258692,3203.8,3203.3,0.002]
[1768807606436,1.10539908,3203.7,3203.3,0.002]
[1768807606628,4.22688182,3203.7,3203.3,0.002]
[1768807606832,4.22688182,3203.7,3203.2,0.00080008]
[1768807606833,1.10539908,3203.6,3203.2,0.00080008]
[1768807608133,3.92978228,3203.7,3203.2,1.08057828]
[1768807608350,0.80829954,3203.7,3203.2,1.08057828]
[1768807608575,4.74173026,3203.8,3203.2,1.08057828]
[1768807609552,7.86309277,3203.8,3203.2,1.08057828]
[1768807609878,1.10539908,3203.7,3203.2,1.08057828]
[1768807612079,4.22683547,3203.7,3203.2,1.08057828]
[1768807612981,1.06357531,3203.6,3203.2,1.08057828]
[1768807614351,1.06357531,3203.6,3203.5,0.002]
[1768807614555,1.8457096,3203.6,3203.2,1.08057828]
[1768807614765,1.06357531,3203.6,3203.2,1.08057828]
[1768807615800,4.18506599,3203.6,3203.2,1.08057828]
[1768807616209,4.18506599,3203.6,3203.2,0.00080008]
[1768807616599,1.06357531,3203.5,3203.1,0.002]
[1768807618906,4.18518165,3203.5,3203.1,0.002]
[1768807619113,4.18518165,3203.5,3202.8,0.00080008]
[1768807619114,1.06357531,3203.4,3202.8,1.07704511]
[1768807619409,1.06357531,3203.3,3202.8,0.00080008]
[1768807620081,1.06357531,3203.3,3202.8,1.07704511]
[1768807620288,1.06357531,3203.3,3202.8,0.00080008]
[1768807620614,1.06357531,3203.2,3202.7,0.002]
[1768807620914,3.12197558,3203.1,3202.7,0.002]
[1768807621208,4.18555089,3203.1,3202.7,0.002]
[1768807621889,0.00080008,3203.2,3202.8,1.07624503]
[1768807622074,0.00080008,3203.2,3202.7,0.002]
[1768807622075,1.06357531,3203.1,3202.7,0.002]
[1768807623396,4.18559005,3203.1,3202.7,0.002]
[1768807623594,4.96791779,3203.1,3202.7,0.002]
[1768807625820,1.06357531,3203.0,3202.7,0.002]
[1768807626026,1.06357531,3203.0,3202.5,0.00080008]
[1768807627517,1.06357531,3202.8,3202.5,0.00080008]
[1768807627725,1.06357531,3202.8,3202.6,0.002]
[1768807628025,1.06357531,3202.8,3202.4,0.002]
[1768807628026,1.06357531,3202.7,3202.4,0.002]
[1768807628437,3.63797061,3202.9,3202.4,0.002]
[1768807628730,1.06357531,3202.8,3202.4,0.002]
[1768807629909,3.12231776,3202.8,3202.4,0.002]
[1768807630109,1.06357531,3202.7,3202.4,0.002]
[1768807630929,1.06357531,3202.7,3202.2,0.00080016]
[1768807631241,1.06357531,3202.6,3202.2,0.00080016]
[1768807632045,3.63727705,3202.8,3202.2,1.07704519]
[1768807632517,4.70085236,3202.8,3202.2,1.07704519]
[1768807634845,1.06357531,3202.7,3202.2,1.07704519]
[1768807635346,1.06357531,3202.7,3202.2,0.00080016]
[1768807635551,1.06357531,3202.7,3202.0,0.002]
[1768807635552,1.06357531,3202.5,3202.0,0.002]
[1768807636121,1.06357531,3202.3,3202.0,0.002]
[1768807638956,4.1863362,3202.3,3202.0,0.002]
[1768807640153,3.12258162,3202.5,3202.0,0.002]
[1768807640358,1.06357531,3202.5,3202.0,1.07824503]
[1768807640556,3.12330639,3202.6,3202.0,1.07824503]
[1768807642060,4.1868817,3202.6,3202.0,1.07824503]
[1768807642236,4.96940653,3202.6,3202.0,1.07824503]
[1768807642437,4.1868817,3202.6,3202.0,1.07824503]
[1768807642747,4.7018817,3202.6,3202.0,1.07824503]
[1768807644456,0.515,3202.5,3202.0,1.07824503]
[1768807645366,4.1868817,3202.6,3202.0,1.07824503]
[1768807645567,3.63830639,3202.6,3202.0,1.07824503]
[1768807646258,3.63830639,3202.6,3202.1,1.03551706]
[1768807646259,0.51580016,3202.6,3202.1,1.03551706]
[1768807646459,3.63826717,3202.6,3202.1,1.03551706]
[1768807647336,4.61498459,3202.6,3202.1,1.03551706]
[1768807648542,0.515,3202.5,3202.1,1.03551706]
[1768807651471,3.63758426,3202.5,3202.3,0.002]
[1768807651669,3.63758426,3202.5,3202.3,0.00056484]
[1768807652751,0.97671742,3202.4,3202.3,0.00056484]
[1768807653663,4.09937542,3202.4,3202.3,0.00056484]
[1768807653968,0.97671742,3202.4,3202.3,0.00056484]
[1768807654141,4.09937542,3202.4,3202.3,0.00056484]
[1768807656368,4.09937542,3202.4,3202.0,1.03751706]
[1768807656742,4.09937542,3202.4,3202.0,0.002]
[1768807657371,4.09937542,3202.4,3201.7,0.002]
[1768807657372,0.97751766,3202.3,3201.7,1.03751706]
[1768807657546,0.97751766,3202.3,3201.5,1.03631738]
[1768807658455,0.97671742,3202.1,3201.5,1.03631738]
[1768807658752,1.0288703,3201.9,3201.5,0.00080032]
[1768807659540,1.0288703,3201.9,3201.4,0.002]
[1768807659740,1.0288703,3201.9,3201.1,0.002]
[1768807659741,1.0288703,3201.7,3201.1,0.002]
[1768807659951,1.0288703,3201.5,3201.1,0.002]
[1768807660274,0.515,3201.4,3201.2,1.02422959]
[1768807660473,0.515,3201.4,3201.2,0.15941795]
[1768807660643,0.35558205,3201.4,3201.2,0.32882408]
[1768807661048,3.12403048,3201.9,3201.2,0.32882408]
[1768807661283,1.0288703,3201.7,3201.2,0.32882408]
[1768807661584,1.0288703,3201.7,3201.1,0.002]
[1768807662664,1.0288703,3201.5,3201.1,0.002]
[1768807662868,3.12343828,3201.6,3201.1,0.002]
[1768807662869,1.0288703,3201.3,3201.1,0.002]
[1768807663386,1.0288703,3201.3,3200.7,0.002]
[1768807664692,1.0288703,3201.3,3201.1,0.002]
[1768807664850,0.51580032,3201.4,3200.7,0.002]
[1768807664851,4.15269886,3201.2,3200.7,0.002]
[1768807665054,1.0288703,3201.1,3200.7,0.002]
[1768807666188,3.12382856,3201.2,3200.7,0.002]
[1768807666675,4.15269886,3201.2,3200.7,0.002]
[1768807668257,1.0288703,3201.2,3200.7,0.002]
[1768807668658,1.0288703,3201.1,3200.7,0.002]
[1768807669388,1.5438703,3201.0,3200.7,0.002]
[1768807669893,1.0288703,3200.9,3200.7,0.002]
[1768807670591,1.0288703,3200.8,3200.5,0.00080056]
[1768807670796,1.0288703,3200.7,3200.3,0.002]
[1768807672766,4.15324241,3200.7,3200.3,0.002]
[1768807673372,0.516,3200.6,3200.3,0.002]
[1768807675904,3.64043895,3200.6,3200.3,0.002]
[1768807676110,4.67962398,3200.6,3200.3,0.002]
[1768807678104,1.03918503,3200.5,3200.3,0.002]
[1768807681221,1.03918503,3200.4,3200.3,0.002]
[1768807681515,0.516,3200.4,3200.3,0.002]
[1768807681703,0.516,3200.4,3200.2,0.0028004]
[1768807683827,1.03918503,3200.6,3200.2,0.0028004]
[1768807684017,0.516,3200.4,3200.2,0.0028004]
[1768807684335,0.516,3200.5,3200.2,0.0028004]
[1768807686408,0.516,3200.5,3200.2,0.31578044]
[1768807686615,1.55518503,3200.5,3200.2,0.31578044]
[1768807686819,1.03918503,3200.4,3200.2,0.0028004]
[1768807689937,1.55518503,3200.5,3200.2,0.0028004]
[1768807690435,4.67971198,3200.5,3200.2,0.0028004]
[1768807690592,1.03918503,3200.4,3200.2,0.0028004]
[1768807696185,4.16382411,3200.4,3200.2,0.0028004]
[1768807698871,1.03918503,3200.3,3199.9,0.00280024]
[1768807700464,0.78042583,3200.4,3199.9,0.00280024]
[1768807700669,1.03918503,3200.4,3199.9,0.00280024]
[1768807703484,3.12524468,3200.6,3199.9,0.00280024]
[1768807703485,0.516,3200.3,3199.9,0.00280024]
[1768807710380,0.001,3200.1,3199.9,0.00280024]
[1768807712505,0.516,3200.4,3199.9,0.00280024]
[1768807712683,0.516,3200.4,3200.0,0.46923913]
[1768807715185,0.516,3200.4,3200.0,3.59418303]
[1768807715772,0.0008004,3200.6,3200.0,3.59418303]
[1768807716689,0.0008004,3200.6,3200.1,4.68959104]
[1768807718887,0.98393674,3200.6,3200.1,4.68959104]
[1768807719185,0.98393674,3200.6,3200.1,5.51824847]
[1768807722070,0.98393674,3200.6,3200.4,0.002]
[1768807727991,0.0008004,3200.6,3200.4,0.002]
[1768807728195,0.516,3200.7,3200.4,0.002]
[1768807728699,1.49913634,3200.8,3200.4,0.002]
[1768807728896,0.98313634,3200.7,3200.4,0.002]
[1768807731303,4.10746655,3200.7,3200.4,0.002]
[1768807732512,3.12433021,3200.7,3200.4,0.002]
[1768807732689,0.92582142,3200.6,3200.4,0.002]
[1768807749735,4.56606999,3200.8,3200.4,0.002]
[1768807749940,3.12376294,3201.3,3200.7,5.6418102]
[1768807749941,0.92582142,3201.2,3200.7,5.6418102]
[1768807750128,1.44182142,3201.2,3200.8,0.56418102]
[1768807750311,1.44182142,3201.2,3200.7,5.6418102]
[1768807752002,3.12343099,3201.7,3201.0,5.6418102]
[1768807752201,0.516,3201.3,3201.0,5.57710958]
[1768807752828,4.04941232,3201.5,3201.0,0.95373]
[1768807753034,0.516,3201.3,3201.0,0.95373]
[1768807753237,0.516,3201.3,3201.0,1.51791102]
[1768807753460,0.516,3201.4,3201.0,1.51871142]
[1768807753900,1.44182142,3201.5,3201.0,1.51871142]
[1768807754419,1.44182142,3201.5,3201.1,0.95373]
[1768807756650,3.12335832,3201.7,3201.1,0.95373]
[1768807756651,0.92582142,3201.7,3201.1,0.95373]
[1768807756839,0.516,3201.7,3201.3,0.95373]
[1768807765153,4.04911992,3201.8,3201.3,0.95373]
[1768807765325,0.00080032,3201.9,3201.3,0.95373]
[1768807766550,0.00080032,3201.9,3201.4,0.9746364]
[1768807767326,0.00080032,3201.9,3201.5,0.9746364]
[1768807768755,0.001,3201.6,3201.5,0.9746364]
[1768807768925,0.00080032,3201.9,3201.5,0.9746364]
[1768807769253,0.51680032,3201.9,3201.6,0.9746364]
[1768807771448,0.96394787,3201.8,3201.4,1.19101527]
[1768807771649,0.96394787,3201.8,3201.0,0.0008004]
[1768807772043,0.96394787,3201.8,3200.5,0.97543704]
[1768807772244,0.96394787,3201.3,3200.5,4.09992604]
[1768807772562,0.96394787,3201.1,3200.5,0.97543704]
[1768807772735,0.96394787,3201.1,3200.5,1.38563548]
[1768807773073,0.96394787,3201.1,3200.5,4.51014175]
[1768807773964,0.96394787,3201.1,3200.5,1.38563548]
[1768807774266,0.96394787,3201.0,3200.5,0.00080064]
[1768807775863,4.0879924,3201.0,3200.5,0.00080064]
[1768807776069,0.96394787,3200.9,3200.5,0.00080064]
[1768807779963,0.516,3200.8,3200.5,0.00080064]
[1768807780268,1.43994643,3200.8,3200.5,0.00280064]
[1768807785471,0.516,3200.8,3200.5,0.00280064]
[1768807785654,0.92394643,3200.7,3200.5,0.00280064]
[1768807788765,0.516,3200.8,3200.5,0.00280064]
[1768807790760,0.516,3200.7,3200.5,0.00280064]
[1768807791363,0.516,3200.7,3200.3,3.12461928]
[1768807791364,0.92394643,3200.6,3200.2,0.00080048]
[1768807792243,0.92394643,3200.6,3200.5,0.002]
[1768807794157,0.516,3200.7,3200.5,0.002]
[1768807794359,1.48456204,3200.7,3200.5,0.002]
[1768807801561,0.00080064,3200.9,3200.5,0.91829876]
[1768807801782,0.516,3200.8,3200.5,0.87028768]
[1768807802581,1.84864833,3200.8,3200.3,0.91629876]
[1768807802770,0.96856204,3200.7,3200.3,0.91629876]
[1768807803958,0.001,3200.4,3200.3,0.91629876]
[1768807806196,0.001,3200.4,3200.2,0.91709924]
[1768807810404,0.96956204,3200.4,3200.0,0.002]
[1768807811688,0.96856204,3200.3,3200.0,0.002]
[1768807817311,1.48556204,3200.4,3200.0,0.002]
[1768807820909,0.96956204,3200.4,3200.0,0.002]
[1768807821215,0.516,3200.3,3200.0,0.002]
[1768807823410,0.516,3200.3,3200.0,0.97274763]
[1768807823598,0.516,3200.3,3200.0,0.002]
[1768807824419,1.51209624,3200.3,3200.0,0.002]
[1768807830587,0.001,3200.4,3200.1,0.97074763]
[1768807841950,0.92380265,3200.3,3199.3,0.002]
[1768807842245,4.68927858,3199.7,3199.3,0.002]
[1768807842434,0.92380265,3199.5,3198.9,0.00280032]
[1768807843135,0.92380265,3199.5,3198.9,3.12887465]
[1768807843336,0.92380265,3199.5,3198.9,3.53674429]
[1768807843542,0.92380265,3199.5,3199.0,3.12595278]
[1768807844058,0.92380265,3199.5,3198.9,3.53671764]
[1768807844557,0.92380265,3199.5,3198.9,0.41066996]
[1768807845024,0.92380265,3199.5,3198.9,3.53673228]
[1768807846546,0.92380265,3199.5,3198.9,0.41066996]
[1768807847948,0.92380265,3199.5,3198.9,3.53673209]
[1768807849848,0.92380265,3199.5,3198.9,4.48255382]
[1768807850153,0.92380265,3199.5,3199.0,0.94582173]
[1768807850340,0.92380265,3199.5,3199.2,0.002]
[1768807860487,0.99843259,3199.4,3199.2,0.002]
[1768807860786,0.99843259,3199.4,3198.9,0.00280032]
[1768807861790,3.12558869,3199.4,3198.9,0.00280032]
[1768807862068,0.99843259,3199.3,3198.9,0.00280032]
[1768807862274,0.99943259,3199.2,3198.9,0.00280032]
[1768807862632,0.99843259,3199.1,3198.9,0.00280032]
[1768807862940,0.99843259,3199.0,3198.6,0.0028004]
[1768807863160,1.56720371,3198.9,3198.6,0.0028004]
[1768807863553,0.99843259,3198.9,3198.6,0.0028004]
[1768807865263,0.001,3199.2,3198.6,0.90460154]
[1768807865579,0.516,3199.2,3198.8,0.90180114]
[1768807865939,0.516,3199.2,3198.9,0.90180114]
[1768807867874,0.516,3199.2,3198.8,0.90180114]
[1768807868276,1.51443259,3199.2,3198.8,0.90180114]
[1768807870447,0.99843259,3199.1,3198.6,4.03093564]
[1768807870643,0.99843259,3199.1,3198.6,4.74668413]
[1768807870842,0.99843259,3199.1,3198.6,1.62035003]
[1768807871795,1.51443259,3199.2,3198.7,0.90180114]
[1768807871955,1.51443259,3199.2,3198.8,1.06383614]
[1768807872155,0.516,3199.2,3198.8,1.06383614]
[1768807872853,0.516,3199.2,3198.9,0.90180114]
[1768807873090,0.516,3199.2,3199.0,0.90180114]
[1768807873292,0.00080016,3199.9,3199.2,0.90180114]
[1768807873497,0.00080016,3199.9,3199.2,0.90260138]
[1768807873699,0.516,3199.8,3199.2,0.90260138]
[1768807874564,1.51443259,3199.8,3199.3,0.90180114]
[1768807875275,0.516,3199.8,3199.3,0.90180114]
[1768807875898,0.516,3199.8,3199.5,0.90180114]
[1768807876763,0.00080016,3199.9,3199.5,0.90180114]
[1768807876965,0.516,3199.7,3199.5,0.90180114]
[1768807877902,0.00080016,3199.9,3199.6,0.90180114]
[1768807878075,0.516,3199.8,3199.6,0.90180114]
[1768807878275,0.516,3199.8,3199.7,0.90180114]
[1768807879709,0.00080016,3199.9,3199.7,0.90180114]
[1768807879919,0.516,3199.8,3199.7,0.90180114]
[1768807880696,0.99843259,3199.7,3199.1,0.77358601]
[1768807880896,0.99843259,3199.7,3198.9,0.0028004]
[1768807880897,0.99843259,3199.3,3198.9,3.12884878]
[1768807881100,0.516,3199.2,3198.9,3.12884878]
[1768807881310,0.516,3199.2,3198.9,3.51909226]
[1768807881532,0.516,3199.2,3198.9,1.16662989]
[1768807883039,0.516,3199.2,3198.9,4.29266441]
[1768807883328,0.516,3199.2,3199.0,0.77358601]
[1768807884329,0.516,3199.2,3199.1,0.77358601]
[1768807887439,0.516,3199.2,3199.0,3.12589913]
[1768807887644,0.516,3199.2,3199.0,3.89948514]
[1768807890545,0.00080024,3199.6,3199.1,0.77358601]
[1768807890733,0.00080016,3199.9,3199.1,0.77358601]
[1768807890913,0.00080016,3199.9,3199.3,0.77358601]
[1768807891748,0.00080016,3199.9,3199.4,3.12558604]
[1768807892044,0.00080016,3199.9,3199.5,0.77358601]
[1768807892748,0.00080016,3199.9,3199.5,1.47606818]
[1768807893144,0.00080016,3199.9,3199.6,0.77358601]
[1768807893645,5.66062407,3199.8,3199.2,3.12654899]
[1768807893853,0.9661309,3199.7,3199.2,3.12654899]
[1768807894347,0.9661309,3199.7,3199.2,0.00080032]
[1768807896015,0.96693106,3199.9,3199.2,0.00080032]
[1768807896215,0.00080016,3199.9,3199.3,0.36416479]
[1768807896621,0.96693106,3199.9,3199.3,0.36416479]
[1768807897347,0.96693106,3199.9,3199.2,0.00080032]
[1768807898047,0.96693106,3199.9,3199.2,0.00280032]
[1768807898453,0.001,3199.5,3199.2,0.00280032]
[1768807904850,0.9851746,3199.5,3199.3,0.515]
[1768807906425,0.00080016,3199.9,3199.4,0.90053929]
[1768807906626,0.00080016,3199.9,3199.5,1.61572783]
[1768807906927,0.00080016,3199.9,3199.5,0.90053929]
[1768807908230,0.00080016,3199.9,3199.6,0.90053929]
[1768807910125,0.00080016,3199.9,3199.6,4.02583618]
[1768807910326,0.00080016,3199.9,3199.7,0.90053929]
[1768807912356,0.00080016,3199.9,3199.7,3.12525751]
[1768807912661,0.00080016,3199.9,3199.7,0.90053929]
[1768807913233,0.00080016,3199.9,3199.8,0.948469]
[1768807914335,0.00080016,3199.9,3199.7,4.47634857]
[1768807914537,0.00080016,3199.9,3199.7,1.35105891]
[1768807914741,0.00080016,3199.9,3199.7,0.40258991]
[1768807914950,0.00080016,3199.9,3199.7,3.52787203]
[1768807918546,0.00080016,3199.9,3199.8,0.4476341]
[1768807918747,0.97077404,3200.2,3199.8,0.4476341]
[1768807918951,0.97077404,3200.2,3199.7,4.07375112]
[1768807919369,0.97077404,3200.2,3199.7,0.948469]
[1768807919745,0.97077404,3200.2,3199.6,4.07380154]
[1768807920273,0.97077404,3200.2,3199.7,3.12529187]
[1768807920657,0.00080024,3200.3,3199.9,0.948469]
[1768807921146,0.97157428,3200.3,3199.9,0.948469]
[1768807921478,0.97157428,3200.3,3199.8,4.07365329]
[1768807923174,0.00080024,3200.3,3199.9,0.948469]
[1768807926383,0.00080024,3200.3,3200.1,0.948469]
[1768807926584,0.00080048,3200.6,3200.1,0.948469]
[1768807926782,0.97157452,3200.6,3200.1,0.948469]
[1768807927983,0.97157468,3200.9,3200.3,0.948469]
[1768807928154,0.97157468,3200.9,3200.4,0.948469]
[1768807928155,0.00080064,3200.9,3200.4,0.948469]
[1768807929175,0.97077404,3201.1,3200.7,0.948469]
[1768807930487,0.97077404,3201.1,3200.8,3.12421894]
[1768807931967,0.97077404,3201.3,3200.9,0.71970018]
[1768807932194,0.0008004,3201.4,3200.9,0.948469]
[1768807932394,0.0008004,3201.4,3201.0,1.463469]
[1768807932597,0.0008004,3201.4,3201.1,3.12392615]
[1768807933097,0.0008004,3201.4,3201.1,4.07239515]
[1768807934192,0.0008004,3201.4,3201.1,3.12392615]
[1768807934381,0.0008004,3201.4,3201.2,0.948469]
[1768807935306,0.0008004,3201.4,3201.1,4.07239515]
[1768807935601,0.0008004,3201.4,3201.1,4.84354284]
[1768807935780,0.0008004,3201.4,3201.2,3.12382652]
[1768807936116,0.97077404,3201.3,3201.0,0.515]
[1768807936418,0.97077404,3201.3,3200.5,0.94926972]
[1768807936419,0.97077404,3201.3,3200.7,3.12428098]
[1768807936598,0.97077404,3201.3,3200.7,0.77130418]
[1768807936909,0.97077404,3201.3,3200.6,3.63937792]
[1768807937093,0.97077404,3201.3,3200.7,3.12429468]
[1768807937568,0.0008004,3201.4,3200.8,0.948469]
[1768807939498,0.0008004,3201.4,3201.0,0.948469]
[1768807940576,0.89254423,3201.5,3201.0,0.948469]
[1768807940777,0.51680032,3201.9,3201.2,0.948469]
[1768807940778,0.97077404,3201.8,3201.2,0.948469]
[1768807941521,0.97077404,3201.8,3201.4,0.948469]
[1768807941704,0.97157436,3201.9,3201.4,0.948469]
[1768807944331,0.97157436,3201.9,3201.4,4.0720842]
[1768807945528,0.001,3201.6,3201.4,4.0720842]
[1768807945728,0.001,3201.6,3201.4,4.79167291]
[1768807946604,0.001,3201.6,3201.5,0.91559838]
[1768807947004,0.001,3201.6,3201.4,3.84320391]
[1768807947202,0.001,3201.6,3201.4,0.71958871]
[1768807947411,0.001,3201.6,3201.3,4.03928836]
[1768807947610,0.001,3201.6,3201.4,3.12361311]
[1768807947808,0.001,3201.6,3201.3,3.12370201]
[1768807948008,0.99291165,3201.6,3201.1,0.91559838]
[1768807948207,0.99291165,3201.6,3201.4,3.12363108]
[1768807948608,0.99291165,3201.6,3201.2,0.91559838]
[1768807948808,0.001,3201.6,3201.2,1.6835235]
[1768807949210,0.001,3201.6,3201.3,0.91559838]
[1768807950627,0.001,3201.6,3201.5,0.91559838]
[1768807950827,0.00080032,3201.9,3201.5,0.91559838]
[1768807950997,0.99271189,3202.3,3201.8,0.91559838]
[1768807953746,0.99271189,3202.3,3201.8,4.03883526]
[1768807953948,0.99271189,3202.3,3201.8,3.12323688]
[1768807954137,0.99271189,3202.3,3201.7,3.1233022]
[1768807954341,0.99271189,3202.3,3201.7,4.83200062]
[1768807954849,0.99271189,3202.3,3201.8,3.12323099]
[1768807955751,0.99271189,3202.3,3201.8,4.03882937]
[1768807955954,0.99271189,3202.3,3201.8,0.91559838]
[1768807957061,0.99271189,3202.3,3201.7,3.91638486]
[1768807957260,0.001,3202.0,3201.7,3.91638486]
[1768807957429,0.001,3202.0,3201.7,1.70869842]
[1768807957928,0.001,3202.0,3201.7,4.03892851]
[1768807958124,0.99191165,3201.9,3201.1,0.91559838]
[1768807958359,0.99271205,3201.9,3201.0,0.51580048]
[1768807958563,0.42259559,3201.3,3200.5,0.9163991]
[1768807958766,0.42259559,3201.3,3200.6,0.91559838]
[1768807959259,4.68892066,3201.4,3200.7,0.98691423]
[1768807959260,0.42339607,3201.4,3200.7,0.98691423]
[1768807959848,0.42339607,3201.4,3200.8,0.98691423]
[1768807960449,3.54703515,3201.4,3200.8,0.98691423]
[1768807961160,3.54703515,3201.4,3200.9,0.98691423]
[1768807961161,0.00080048,3201.4,3200.9,0.98691423]
[1768807961373,0.00080048,3201.4,3201.0,0.98691423]
[1768807962273,0.00080048,3201.4,3201.1,0.98691423]
[1768807965663,0.00080048,3201.4,3201.2,0.98691423]
[1768807967795,0.42339607,3201.4,3200.9,0.515]
[1768807967987,0.42339607,3201.4,3200.9,1.50191423]
[1768807968145,0.42339607,3201.4,3200.9,4.62603547]
[1768807968346,0.42339607,3201.4,3201.0,1.44951778]
[1768807969459,0.42339607,3201.4,3201.0,1.45151778]
[1768807969781,0.00080048,3201.4,3201.0,1.45151778]
[1768807970480,0.00080048,3201.4,3201.1,0.98691423]
[1768807974890,0.99847074,3201.4,3201.0,0.72278189]
[1768807975092,0.99847074,3201.4,3200.5,0.00080072]
[1768807975296,0.99767026,3201.1,3200.5,0.00080072]
[1768807976974,0.99767026,3200.9,3200.5,0.00080072]
[1768807979310,5.20312018,3201.3,3200.5,0.00080072]
[1768807979311,0.99767026,3200.7,3200.5,0.00080072]
[1768807981219,0.99767026,3200.6,3200.5,0.00080072]
[1768807982415,4.12208443,3200.6,3200.5,0.00280072]
[1768807982619,0.99767026,3200.6,3200.5,0.00280072]
[1768807982986,0.99767026,3200.5,3200.0,0.002]
[1768807983287,0.99767026,3200.3,3200.0,0.002]
[1768807983889,0.99767026,3200.2,3199.7,0.515]
[1768807985710,0.99767026,3200.0,3199.7,0.515]
[1768807986027,0.99767026,3199.8,3199.7,0.515]
[1768807986454,0.99767026,3199.8,3199.5,0.00080024]
[1768807986758,0.99767026,3199.8,3199.4,0.515]
[1768807986759,0.99767026,3199.7,3198.9,0.0028004]
[1768807986931,0.99767026,3199.5,3198.9,0.0028004]
[1768807987739,0.99767026,3199.5,3198.9,0.97717938]
[1768807987955,4.69415623,3199.6,3199.0,0.97437898]
[1768807987956,0.00080032,3199.6,3199.0,0.97437898]
[1768807988125,0.00080032,3199.6,3199.1,0.97437898]
[1768807988455,0.00080024,3199.9,3199.0,3.5879577]
[1768807988456,0.00080024,3199.9,3199.3,0.97437898]
[1768807988649,0.00080024,3199.9,3199.5,0.97437898]
[1768807989214,3.12590346,3199.9,3199.5,0.97437898]
[1768807991115,0.00080024,3199.9,3199.5,0.97437898]